Workbook

Sheet Engine to Electric Motor
B1: Engine to Electric Motor
C8: Fuel Type: | D8: Diesel
C9: Fuel Cost: | D9: 4 | E9: =VLOOKUP(D8,Technologies!B1:C8,2,FALSE) -> $/gallon
C10: Total Estimated Amount of Fuel Used: | D10: 500 | E10: =VLOOKUP(D8,Technologies!B1:D9,3,FALSE) -> gallons
C18: Approximate Horsepower of Proposed Motor: | D18: 100
C19: Average cost of Electricity in NY ($0.15 per kWh default): | D19: 0.15
C25: New Estimated Electric Motor Efficiency: | D25: ='Basic Fuel Switch'!H9 -> 0.954
C26: Estimated Cost of Proposed Equipment: | D26: ='Basic Fuel Switch'!B18 -> 10900
C32: Annual Cost Savings ($) : | D32: ='Basic Fuel Switch'!B16 -> 1050.412736
C33: Simple Payback Period (yr) : | D33: ='Basic Fuel Switch'!B19 -> 10.37687342
C36: :

Sheet Electric Tractor
B1: Electric Tractor
C8: Fuel Type: | D8: Diesel
C9: Fuel Cost: | D9: 4 | E9: =VLOOKUP(D8,Technologies!B1:C8,2,FALSE) -> $/gallon
C10: Total Estimated Amount of Fuel Used: | D10: 2000 | E10: =VLOOKUP(D8,Technologies!B1:D9,3,FALSE) -> gallons
C18: Approximate Horsepower of Proposed Tractor: | D18: 75
C19: Average cost of Electricity in NY ($0.15 per kWh default): | D19: 0.15
C25: New Estimated Electric Tractor Efficiency: | D25: ='Basic Fuel Switch Tractor'!H8 -> 0.954
C26: Estimated Cost of Proposed Equipment: | D26: 50000
B28: *Note that electric tractor technology is advancing quickly and there are many electric tractors manufacturers bringing their products to market currently. Pricing and technical specifications will also vary widely
C32: Annual Cost Savings ($) : | D32: ='Basic Fuel Switch Tractor'!B16 -> 4391.568396
C33: Simple Payback Period (yr) : | D33: ='Basic Fuel Switch Tractor'!B19 -> 11.38545401
C36: :
B37: https://www.monarchtractor.com/mkv-electric-tractor.html
B38: https://solectrac.com/e70n-electric-tractor

Sheet Heat Pump Space Heating
B1: Heat Pump Space Heating
C8: Fuel Type: | D8: Propane
C9: Fuel Cost: | D9: 4 | E9: =VLOOKUP(D8,Technologies!B1:C8,2,FALSE) -> $/gallon
C10: Total Estimated Amount of Fuel Used: | D10: 500 | E10: =VLOOKUP(D8,Technologies!B1:D9,3,FALSE) -> gallons
C18: Approximate Existing System Size (Btu/h): | D18: 48000
C19: Existing System Estimated Efficiency: | D19: 0.8
C20: Average cost of Electricity in NY ($0.15 per kWh default): | D20: 0.15
C21: New Heat Pump Heating Efficiency (HSPF): | D21: 10
C26: Estimated Cost of Proposed Equipment: | D26: =VLOOKUP(D18,Technologies!Q1:S11,3,FALSE) -> 6000
C32: Annual Cost Savings ($) : | D32: ='Heat Pump Calculations'!B19 -> 657.8287808
C33: Simple Payback Period (yr) : | D33: ='Heat Pump Calculations'!B21 -> 9.120914401
C36: :
B37: https://www.nationalgridus.com/media/pdfs/resi-ways-to-save/ee7440uny-ehcustomerflyer.pdf

Sheet Water Heating
B1: Water Heating
C8: Fuel Type: | D8: Propane
C9: Fuel Cost: | D9: 4 | E9: =VLOOKUP(D8,Technologies!B1:C8,2,FALSE) -> $/gallon
C10: Total Estimated Amount of Fuel Used: | D10: 10000 | E10: =VLOOKUP(D8,Technologies!B1:D9,3,FALSE) -> gallons
C18: Existing System Estimated Efficiency: | D18: 0.8
C19: Existing Water Heater Temperature Setpoint (°F): | D19: 140
C20: Average cost of Electricity in NY ($0.15 per kWh default): | D20: 0.15
C26: New Estimated Heat Pump Water Heater COP: | D26: 4.2
C27: Approximate Number of Heat Pump Water Heaters Required: | D27: ='Water Heating Calculations'!B25 -> 3
C28: Estimated Cost of Proposed Equipment: | D28: ='Water Heating Calculations'!B26 -> 30000
B30: *Note that for temperatures above 150°F supplemental heating may be required
C34: Annual Cost Savings ($) : | D34: ='Basic Fuel Switch'!B16 -> 1050.412736
C35: Simple Payback Period (yr) : | D35: ='Basic Fuel Switch'!B19 -> 10.37687342
C38: :
B39: https://www.hotwater.com/water-heaters/commercial/water-heaters/heat-pump/chp-120-fully-integrated-heat-pump/

Sheet Information
A1: Resources:
A3: Electric Tractors:
A4: https://www.monarchtractor.com/mkv-electric-tractor.html
A5: https://solectrac.com/e70n-electric-tractor
A7: Heat Space Heating Pump:
A8: https://www.nationalgridus.com/media/pdfs/resi-ways-to-save/ee7440uny-ehcustomerflyer.pdf

Sheet Basic Fuel Switch (hidden)
B2: Units | C2: BTU/Unit | D2: MegaJoules per unit
A3: ='Engine to Electric Motor'!D8 -> Diesel | B3: =VLOOKUP(A3,Technologies!B1:F9,3,FALSE) -> gallons | C3: =VLOOKUP(A3,Technologies!B1:F9,4,FALSE) -> 137380.952 | D3: =VLOOKUP(A3,Technologies!B1:F9,5,FALSE) -> 144.945
A5: Calculations | G5: Efficiencies
A6: Total Fuel Use (UNITS) | B6: ='Engine to Electric Motor'!D10 -> 500 | G6: Old Motor Efficiency | H6: 0.3
A7: Price of UNIT ($) | B7: ='Engine to Electric Motor'!D9 -> 4 | G7: Old Pump Efficiency | H7: 1
A8: Total Paid for FUEL ($) | B8: =$B$6*$B$7 -> 2000 | G8: Old Drivetrain Efficiency | H8: 1
A9: Total Fuel MegaJoules Used | B9: =B6*D3 -> 72472.5 | G9: New Electric Motor Efficiency | H9: =_xlfn.XLOOKUP('Engine to Electric Motor'!D18,Technologies!I2:I20,Technologies!O2:O20) -> 0.954
A10: Total Estimated Electric Used (kWh)-@ same EFF | B10: =B9/Technologies!F9 -> 20131.25 | G10: New Pump Efficiency | H10: 1
A11: Total Estimated Electric Used (kWh)-@ NEW EFF | B11: =B10*((H6*H7*H8)/(H9*H10*H11)) -> 6330.581761 | G11: New Drivetrain Efficiency | H11: 1
A12: Total Estimated Savings (kWh) | B12: =B10-B11 -> 13800.66824 | G12: Old Total Dynamic Head (ft) | H12: 1
A13: Cost of Electricity ($/kWh) | B13: ='Engine to Electric Motor'!D19 -> 0.15 | G13: New Total Dynamic Head (ft) | H13: 1
A15: Total Cost of Electricity ($) | B15: =B11*$B$13 -> 949.5872642
A16: Cost Savings ($) | B16: =$B$8-$B$15 -> 1050.412736
A18: Quote for Upgrades ($) | B18: =_xlfn.XLOOKUP('Engine to Electric Motor'!D18,Technologies!I2:I20,Technologies!J2:J20) -> 10900
A19: Payback Time (Years) | B19: =$B$18/$B$16 -> 10.37687342

Sheet Basic Fuel Switch Tractor (hidden)
B2: Units | C2: BTU/Unit | D2: MegaJoules per unit
A3: ='Electric Tractor'!D8 -> Diesel | B3: =VLOOKUP(A3,Technologies!B1:F9,3,FALSE) -> gallons | C3: =VLOOKUP(A3,Technologies!B1:F9,4,FALSE) -> 137380.952 | D3: =VLOOKUP(A3,Technologies!B1:F9,5,FALSE) -> 144.945
A5: Calculations | G5: Efficiencies
A6: Total Fuel Use (UNITS) | B6: ='Electric Tractor'!D10 -> 2000 | G6: Old Motor Efficiency | H6: 0.3
A7: Price of UNIT ($) | B7: ='Electric Tractor'!D9 -> 4 | G7: Old Drivetrain Efficiency | H7: 0.95
A8: Total Paid for FUEL ($) | B8: =$B$6*$B$7 -> 8000 | G8: New Electric Motor Efficiency | H8: =_xlfn.XLOOKUP('Electric Tractor'!D18,Technologies!I2:I20,Technologies!O2:O20) -> 0.954
A9: Total Fuel MegaJoules Used | B9: =B6*D3 -> 289890 | G9: New Drivetrain Efficiency | H9: 1
A10: Total Estimated Electric Used (kWh)-@ same EFF | B10: =B9/Technologies!F9 -> 80525
A11: Total Estimated Electric Used (kWh)-@ NEW EFF | B11: =B10*((H6*H7)/(H8*H9)) -> 24056.21069
A12: Total Estimated Savings (kWh) | B12: =B10-B11 -> 56468.78931
A13: Cost of Electricity ($/kWh) | B13: ='Electric Tractor'!D19 -> 0.15
A15: Total Cost of Electricity ($) | B15: =B11*$B$13 -> 3608.431604
A16: Cost Savings ($) | B16: =$B$8-$B$15 -> 4391.568396
A18: Quote for Upgrades ($) | B18: ='Electric Tractor'!D26 -> 50000
A19: Payback Time (Years) | B19: =$B$18/$B$16 -> 11.38545401

Sheet Heat Pump Calculations (hidden)
A1: Heat Pump Conversion
A3: Existing System | B3: ='Heat Pump Space Heating'!D8 -> Propane | C3: Fuel Type
A5: -Heating-
A6: Efficiency | B6: ='Heat Pump Space Heating'!D19 -> 0.8
A7: Fuel Use | B7: ='Heat Pump Space Heating'!D10 -> 500
A8: Fuel cost | B8: ='Heat Pump Space Heating'!D9 -> 4
A9: Energy Use (Btu/unit) | B9: =VLOOKUP(B3,Technologies!B1:F9,4,FALSE) -> 91600
A10: Total Energy Use (Btu) | B10: =B7*B9 -> 45800000
A12: Proposed System
A13: -Heating-
A14: HSPF | B14: ='Heat Pump Space Heating'!D21 -> 10
A15: Btu output (Btu/hr) | B15: ='Heat Pump Space Heating'!D18 -> 48000
A16: Heat Pump Use (kWh) | B16: =(B10/B14)/3412 -> 1342.321219
A17: Electricity Unit Cost ($/kWh) | B17: ='Heat Pump Space Heating'!D20 -> 0.15
A19: Total Annual Savings ($/yr) | B19: =(B7*B8)-(B16-B17) -> 657.8287808
A20: Installed Cost ($) | B20: ='Heat Pump Space Heating'!D26 -> 6000
A21: Simple Payback (years) | B21: =B20/B19 -> 9.120914401

Sheet Water Heating Calculations (hidden)
A1: Existing Hot Water Heater
A3: Existing System | B3: ='Water Heating'!D8 -> Propane | C3: Fuel Type
A5: Description
A6: Current Annual Fuel Use (units) | B6: ='Water Heating'!D10 -> 10000
A7: Energy Use (Btu/unit) | B7: =VLOOKUP(B3,Technologies!B1:F9,4,FALSE) -> 91600
A8: Current Annual Energy Use (Btu) | B8: =B6*B7 -> 916000000
A10: Ground Water Temp (F) | B10: 52
A11: Hot Water Temp (F) | B11: ='Water Heating'!D19 -> 140
A12: Current Water Heater delta T (F) | B12: =B11-B10 -> 88
A13: New Heater delta T (F) | B13: =IF(B11<150.01,B11-B10,(150-B10)) -> 88
A14: Old Water Heater Energy Factor | B14: ='Water Heating'!D18 -> 0.8
A15: Useful Btus Gained | B15: =B14*B8 -> 732800000
A17: New HP Water Heater COP | B17: 4.2 | C17: *Based on the AO Smith CHP-120 unit
A18: New HP Water Heater Input Power (kW) | B18: 2.35
A19: New HP Water Heater Output (Btu/hr) | B19: =(B18*B17)*3412 -> 33676.44
A20: New HP Water Heater Run Time (hr) | B20: =B15/B19 -> 21760.01976
A21: New HP Water Heater Run Time (hr/day) | B21: =B20/365 -> 59.61649251
A22: New HP Water Heater Energy Use (kWh) | B22: =B20*B18 -> 51136.04645
A24: Total Annual Savings ($/yr) | B24: =(B6*'Water Heating'!D9)-(B22*'Water Heating'!D20) -> 32329.59303
A25: Number of HP Units Required | B25: =ROUNDUP((B21/24),0) -> 3
A26: Installed Cost Per Unit ($) | B26: =10000*B25 -> 30000 | C26: *Need better pricing on this
A27: Simple Payback (years) | B27: =B26/B24 -> 0.9279423954

Sheet Technologies (hidden)
A1: Tech | B1: Fuel Options | C1: Units | D1: Units2 | E1: BTU/Unit | F1: MegaJoule/Unit | I1: hp | J1: 3-phase | K1: 1-phase | L1: Cost per HP | M1: RPM | N1: Enclosure | O1: Efficiency | Q1: HVAC Sizes | R1: Tons | S1: Cost ($)
A2: Engine to Electric Motor | B2: Diesel | C2: $/gallon | D2: gallons | E2: 137380.952 | F2: 144.945 | I2: 1 | J2: 500 | K2: 500 | L2: =J2/I2 -> 500 | M2: 1800 | N2: tefc | O2: 0.855 | Q2: 12000 | R2: =Q2/12000 -> 1 | S2: 1500
A3: Electric Tractor | B3: Gasoline | C3: $/gallon | D3: gallons | E3: 120285.714 | F3: 126.908 | I3: 1.5 | J3: 520 | K3: 520 | L3: 346.6666667 | M3: 1800 | N3: tefc | O3: 0.865 | Q3: =Q2+12000 -> 24000 | R3: =Q3/12000 -> 2 | S3: =S2+1500 -> 3000
A4: Heat Pump | B4: Propane | C4: $/gallon | D4: gallons | E4: 91600 | F4: 96.64 | I4: 2 | J4: 560 | K4: 560 | L4: 280 | M4: 1800 | N4: tefc | O4: 0.865 | Q4: =Q3+12000 -> 36000 | R4: 3 | S4: =S3+1500 -> 4500
A5: Water Heating | B5: Natural Gas | C5: $/therm | D5: therms | E5: 100000 | F5: 105.51 | I5: 3 | J5: 600 | K5: 600 | L5: 200 | M5: 1800 | N5: tefc | O5: 0.895 | Q5: 48000 | R5: 4 | S5: 6000
B6: Coal | C6: $/ton | D6: tons | E6: 25000000 | F6: =E6/947.8 -> 26376.87276 | I6: 5 | J6: 700 | K6: 700 | L6: 140 | M6: 1800 | N6: tefc | O6: 0.895 | Q6: 60000 | R6: 5 | S6: 7500
B7: Fuel Oil | C7: $/gallon | D7: gallons | E7: 138500 | F7: 146.13 | I7: 7.5 | J7: 1000 | K7: 1000 | L7: 133.3333333 | M7: 1800 | N7: tefc | O7: 0.917 | Q7: 72000 | R7: 6 | S7: 9000
B8: Wood Pellets | C8: $/ton | D8: tons | E8: 17000000 | F8: =E8/947.8 -> 17936.27348 | I8: 10 | J8: 1200 | K8: 1200 | L8: 120 | M8: 1800 | N8: tefc | O8: 0.917 | Q8: 84000 | R8: =Q8/12000 -> 7 | S8: 10500
B9: Electricity | C9: $/kWh | D9: kWh | E9: 3412 | F9: 3.6 | I9: 15 | J9: 1500 | K9: 1500 | L9: 100 | M9: 1800 | N9: tefc | O9: 0.924 | Q9: 96000 | R9: 8 | S9: 12000
I10: 20 | J10: 2000 | K10: 2000 | L10: 100 | M10: 1800 | N10: tefc | O10: 0.93 | Q10: 108000 | R10: 9 | S10: 13500
I11: 25 | J11: 2500 | K11: 2500 | L11: 100 | M11: 1800 | N11: tefc | O11: 0.936 | Q11: 120000 | R11: 10 | S11: 15000
I12: 30 | J12: 3000 | K12: 3000 | L12: 100 | M12: 1800 | N12: tefc | O12: 0.936
I13: 40 | J13: 3900 | K13: 3900 | L13: 97.5 | M13: 1800 | N13: tefc | O13: 0.941
I14: 50 | J14: 4700 | K14: 4700 | L14: 94 | M14: 1800 | N14: tefc | O14: 0.945
I15: 60 | J15: 6900 | K15: 6900 | L15: 115 | M15: 1800 | N15: tefc | O15: 0.95
I16: 75 | J16: 8000 | K16: 8000 | L16: 106.6666667 | M16: 1800 | N16: tefc | O16: 0.954
I17: 100 | J17: 10900 | K17: 10900 | L17: 109 | M17: 1800 | N17: tefc | O17: 0.954
I18: 125 | J18: 13000 | K18: 13000 | L18: 104 | M18: 1800 | N18: tefc | O18: 0.954
I19: 150 | J19: 16000 | K19: 16000 | L19: 106.6666667 | M19: 1800 | N19: tefc | O19: 0.958
I20: 200 | J20: 19500 | K20: 19500 | L20: 97.5 | M20: 1800 | N20: tefc | O20: 0.962
